Workbook

Sheet Folha1
C2: Plano Regional de Educação Rodoviária
C4: IV Final Regional de Orientação Rodoviária
C5: 2º CICLO
C6: Ano lectivo 2010/2011
C8: Respostas incorretas (x2) | D8: Tempo | E8: Pontos não visitados (x5) | F8: Total
B9: EB23 do Caniço | C9: 1 | D9: 16.26 | E9: 0 | F9: =2*C9+D9+E9*5 -> 18.26 | G9: 1º
B10: EBS de Machico | C10: 1 | D10: 18.12 | E10: 0 | F10: =2*C10+D10+E10*5 -> 20.12 | G10: 2º
B11: EBS Bispo D. Manuel Ferreira Cabral | C11: 3 | D11: 17.18 | E11: 0 | F11: =2*C11+D11+E11*5 -> 23.18 | G11: 3º
B12: EBS Prof. Dr. Francisco de Freitas Branco | C12: 1 | D12: 23.03 | E12: 0 | F12: =2*C12+D12+E12*5 -> 25.03
B13: Colégio Infante D. Henrique | C13: 3 | D13: 20.13 | E13: 0 | F13: =2*C13+D13+E13*5 -> 26.13
B14: EB23 de Porto da Cruz | C14: 6 | D14: 18.06 | E14: 0 | F14: =2*C14+D14+E14*5 -> 30.06
B15: EBS Gonçalves Zarco | C15: 3 | D15: 24.09 | E15: 0 | F15: =2*C15+D15+E15*5 -> 30.09
B16: EB23 Dr. Horácio Bento Gouveia | C16: 3 | D16: 23.08 | E16: 1 | F16: =2*C16+D16+E16*5 -> 34.08
B17: EB23 de Sto. António | C17: 5 | D17: 20.29 | E17: 1 | F17: =2*C17+D17+E17*5 -> 35.29
B18: EBS da Ponta do Sol | C18: 5 | D18: 20.29 | E18: 1 | F18: =2*C18+D18+E18*5 -> 35.29
B19: EBS do Carmo | C19: 7 | D19: 22.07 | E19: 0 | F19: =2*C19+D19+E19*5 -> 36.07
B20: EB23 Dr. Alfredo Nóbrega Junior | C20: 9 | D20: 20 | E20: 0 | F20: =2*C20+D20+E20*5 -> 38
B21: EB23 Cónego João Jacinto Gonçalves de Andrade | C21: 10 | D21: 20 | E21: 0 | F21: =2*C21+D21+E21*5 -> 40
B22: EB23 de São Jorge | C22: 8 | D22: 24.33 | E22: 0 | F22: =2*C22+D22+E22*5 -> 40.33
B23: EBS Padre Manuel Álvares | C23: 8 | D23: 24.33 | E23: 0 | F23: =2*C23+D23+E23*5 -> 40.33
B24: EBS Dr. Ângelo Augusto da Silva | C24: 10 | D24: 22.05 | E24: 0 | F24: =2*C24+D24+E24*5 -> 42.05
B25: EB23 São Roque | C25: 5 | D25: 33.18 | E25: 0 | F25: =2*C25+D25+E25*5 -> 43.18
B26: EB23 da Torre | C26: 6 | D26: 22.05 | E26: 2 | F26: =2*C26+D26+E26*5 -> 44.05
B27: EB23 dos Louros | C27: 6 | D27: 32.53 | E27: 0 | F27: =2*C27+D27+E27*5 -> 44.53
B28: EB23 Curral das Freiras | C28: 9 | D28: 22.41 | E28: 1 | F28: =2*C28+D28+E28*5 -> 45.41
B29: EBS da Calheta | C29: 8 | D29: 33 | E29: 0 | F29: =2*C29+D29+E29*5 -> 49
B30: EB23 do Caniçal | C30: 7 | D30: 24.56 | E30: 3 | F30: =2*C30+D30+E30*5 -> 53.56
B31: EB23 do Estreito de Câmara de Lobos | C31: 8 | D31: 39 | E31: 0 | F31: =2*C31+D31+E31*5 -> 55
B32: EB23 Bartolomeu Perestrelo | C32: 8 | D32: 39.2 | E32: 0 | F32: =2*C32+D32+E32*5 -> 55.2
B33: EBS D. Lucinda Andrade | C33: 9 | D33: 39.22 | E33: 0 | F33: =2*C33+D33+E33*5 -> 57.22
B34: EBS Santa Cruz | C34: 10 | D34: 48 | E34: 0 | F34: =2*C34+D34+E34*5 -> 68
B35: EB123 Prof Francisco M. S. Barreto | C35: 0 | D35: 40 | E35: 7 | F35: =2*C35+D35+E35*5 -> 75

Sheet Folha2

Sheet Folha3
